fUSD/lending_fUSD_20250127
["ID","MTS","AMOUNT","RATE_DAILY","PERIOD"]
[350607848,1737992148158,-540.65,0.00011896,2]
[350607849,1737992148180,-500.0,0.00011896,2]
[350607850,1737992148205,-500.0,0.00011896,2]
[350607851,1737992148228,-500.0,0.00011896,2]
[350607852,1737992148250,-500.0,0.00011896,2]
[350607853,1737992148274,-290.06441359,0.00011896,2]
[350607854,1737992148296,-500.0,0.00011896,2]
[350607855,1737992148323,-500.0,0.00011896,2]
[350607856,1737992148347,-500.0,0.00011896,2]
[350607857,1737992148369,-500.0,0.00011896,2]
[350607858,1737992148393,-500.0,0.00011896,2]
[350607859,1737992148419,-760.76,0.00011896,2]
[350607860,1737992148443,-667.17,0.00011896,2]
[350607861,1737992148469,-850.99,0.00011896,2]
[350607862,1737992148493,-500.0,0.00011896,2]
[350607863,1737992148516,-500.0,0.00011896,2]
[350607864,1737992148543,-961.56,0.00011896,2]
[350607865,1737992148568,-500.0,0.00011896,2]
[350607866,1737992148593,-500.0,0.00011896,2]
[350607867,1737992148616,-500.0,0.00011896,2]
[350607868,1737992148640,-500.0,0.00011896,2]
[350607869,1737992148663,-500.0,0.00011896,2]
[350607870,1737992148688,-500.0,0.00011896,2]
[350607871,1737992148712,-500.0,0.00011896,2]
[350607872,1737992148735,-500.0,0.00011897,2]
[350607873,1737992148761,-500.0,0.00011897,2]
[350607874,1737992148785,-500.0,0.00011897,2]
[350607875,1737992148808,-500.0,0.00011897,2]
[350607876,1737992148831,-500.0,0.00011897,2]
[350607877,1737992148856,-500.0,0.00011897,2]
[350607878,1737992149078,-500.0,0.00011897,2]
[350607879,1737992149104,-869.49,0.00011897,2]
[350607880,1737992149128,-500.0,0.00011897,2]
[350607881,1737992149153,-500.0,0.00011897,2]
[350607882,1737992149175,-500.0,0.00011897,2]
[350607883,1737992149199,-500.0,0.00011897,2]
[350607884,1737992149224,-500.0,0.00011897,2]
[350607885,1737992149248,-500.0,0.00011897,2]
[350607886,1737992149276,-500.0,0.00011897,2]
[350607887,1737992149300,-500.0,0.00011897,2]
[350607888,1737992149330,-530.80173793,0.00011897,2]
[350607889,1737992149356,-500.0,0.00011897,2]
[350607890,1737992149381,-500.0,0.00011897,2]
[350607891,1737992149405,-500.0,0.00011897,2]
[350607892,1737992149429,-500.0,0.00011897,2]
[350607893,1737992149451,-751.87,0.00011897,2]
[350607894,1737992149475,-728.83,0.00011897,2]
[350607895,1737992149498,-540.65,0.00011897,2]
[350607896,1737992149523,-540.65,0.00011897,2]
[350607897,1737992149548,-500.0,0.00011897,2]
[350607898,1737992149572,-500.0,0.00011897,2]
[350607899,1737992149594,-575.76907641,0.00011897,2]
[350607900,1737992149622,-620.23,0.00011897,2]
[350607901,1737992149651,-500.0,0.00011897,2]
[350607902,1737992149677,-500.0,0.00011897,2]
[350607903,1737992149699,-500.0,0.00011897,2]
[350607904,1737992149723,-440.26396644,0.00011897,2]
[350607905,1737992149746,-500.0,0.00011897,2]
[350607906,1737992149772,-500.0,0.00011897,2]
[350607907,1737992149795,-500.0,0.00011897,2]
[350607908,1737992149819,-500.0,0.00011897,2]
[350607909,1737992149842,-500.0,0.00011897,2]
[350607910,1737992149866,-500.0,0.00011897,2]
[350607911,1737992149889,-749.34,0.00011897,2]
[350607912,1737992149912,-500.0,0.00011897,2]
[350607913,1737992149935,-500.0,0.00011897,2]
[350607914,1737992149958,-500.0,0.00011897,2]
[350607915,1737992149980,-846.03,0.00011897,2]
[350607916,1737992150004,-500.0,0.00011897,2]
[350607917,1737992150029,-500.0,0.00011897,2]
[350607918,1737992150052,-500.0,0.00011897,2]
[350607919,1737992150074,-500.0,0.00011897,2]
[350607920,1737992150100,-760.76,0.00011897,2]
[350607921,1737992150124,-760.76,0.00011897,2]
[350607922,1737992150145,-500.0,0.00011897,2]
[350607923,1737992150168,-667.17,0.00011897,2]
[350607924,1737992150191,-667.17,0.00011897,2]
[350607925,1737992150214,-850.99,0.00011897,2]
[350607926,1737992150237,-850.99,0.00011897,2]
[350607927,1737992150262,-500.0,0.00011897,2]
[350607928,1737992150284,-500.0,0.00011897,2]
[350607929,1737992150310,-500.0,0.00011897,2]
[350607930,1737992150332,-19.12138093,0.00011897,2]
[350607932,1737992473342,197.1,0.00023,120]
[350608084,1737992949518,873.25,8.368e-05,2]
[350608098,1737993032037,-750.0,0.0001,2]
[350608099,1737993032047,-150.45,0.00010137,2]
[350608101,1737993032057,-250.0,0.00010286,2]
[350608103,1737993032067,-250.0,0.00010308,2]
[350608105,1737993032076,-300.0,0.00010318,2]
[350608107,1737993032085,-27401.9,0.00010319,2]
[350608109,1737993032095,-200.0,0.0001036,2]
[350608110,1737993032104,-500.0,0.000105,2]
[350608111,1737993032114,-690.95,0.00010546,2]
[350608112,1737993032124,-252.0,0.00010547,2]
[350608113,1737993032134,-873.25,0.00010632,2]
[350608114,1737993032143,-169.64,0.00010668,2]
[350608115,1737993032153,-5545.4629,0.0001068,2]
[350608116,1737993032163,-150.0,0.00010767,2]
[350608117,1737993032172,-324.66,0.00010771,2]
[350608118,1737993032181,-17958.91333212,0.0001078,2]
[350608119,1737993032190,-975.25018224,0.00010781,2]
[350608120,1737993032200,-23900.0,0.00010782,2]
[350608121,1737993032210,-1322.68,0.00010833,2]
[350608122,1737993032220,-171.2,0.00010851,2]
[350608123,1737993032231,-779.3,0.00010873,2]
[350608124,1737993032241,-150.0,0.00010891,2]
[350608125,1737993032251,-1500.0,0.00010892,2]
[350608126,1737993032261,-184.49534558,0.000109,2]
[350608127,1737993032271,-215.77637166,0.00010958,2]
[350608128,1737993032281,-500.0,0.00010958,2]
[350608129,1737993032290,-500.0,0.00010958,2]
[350608130,1737993032300,-500.0,0.00010958,2]
[350608131,1737993032309,-500.0,0.00010958,2]
[350608132,1737993032319,-500.0,0.00010958,2]
[350608133,1737993032329,-503.70368938,0.00010958,2]
[350608134,1737993032338,-500.0,0.00010958,2]
[350608135,1737993032348,-409.88583569,0.00010958,2]
[350608136,1737993032358,-500.0,0.00010958,2]
[350608137,1737993032368,-500.0,0.00010958,2]
[350608138,1737993032377,-536.18516507,0.00010958,2]
[350608139,1737993032387,-500.0,0.00010958,2]
[350608140,1737993032396,-500.0,0.00010958,2]
[350608141,1737993032406,-500.0,0.00010958,2]
[350608142,1737993032415,-500.0,0.00010958,2]
[350608143,1737993032424,-264.3443499,0.00010958,2]
[350608144,1737993032434,-500.0,0.00010958,2]
[350608145,1737993032443,-500.0,0.00010958,2]
[350608146,1737993032454,-506.19274385,0.00010958,2]
[350608147,1737993032464,-500.0,0.00010958,2]
[350608148,1737993032475,-500.0,0.00010958,2]
[350608149,1737993032489,-500.0,0.00010958,2]
[350608150,1737993032498,-500.0,0.00010958,2]
[350608151,1737993032509,-500.0,0.00010958,7]
[350608152,1737993032518,-500.0,0.00010958,2]
[350608153,1737993032528,-500.0,0.00010958,2]
[350608154,1737993032537,-500.0,0.00010958,2]
[350608155,1737993032547,-500.0,0.00010958,2]
[350608156,1737993032557,-500.0,0.00010958,2]
[350608157,1737993032567,-500.0,0.00010958,2]
[350608158,1737993032576,-500.0,0.00010958,2]
[350608159,1737993032586,-500.0,0.00010958,2]
[350608161,1737993032596,-500.0,0.00010958,2]
[350608163,1737993032611,-500.0,0.00010958,2]
[350608165,1737993032621,-239.9615844,0.00010958,2]
[350608167,1737993032631,-527.88790323,0.00010958,2]
[350608170,1737993032642,-500.0,0.00010958,2]
[350608172,1737993032651,-500.0,0.00010958,2]
[350608173,1737993032662,-500.0,0.00010958,2]
[350608175,1737993032672,-500.0,0.00010958,2]
[350608177,1737993032683,-500.0,0.00010958,2]
[350608179,1737993032693,-500.0,0.00010958,2]
[350608181,1737993032703,-500.0,0.00010958,2]
[350608183,1737993032713,-500.0,0.00010958,2]
[350608185,1737993032726,-500.0,0.00010958,2]
[350608188,1737993032736,-500.0,0.00010958,2]
[350608191,1737993032746,-500.0,0.00010958,2]
[350608193,1737993032755,-500.0,0.00010958,2]
[350608195,1737993032766,-500.0,0.00010958,2]
[350608198,1737993032776,-500.0,0.00010958,2]
[350608199,1737993032786,-500.0,0.00010958,2]
[350608201,1737993032795,-380.57908037,0.00010958,2]
[350608203,1737993032805,-500.0,0.00010958,2]
[350608205,1737993032815,-500.0,0.00010958,2]
[350608208,1737993032826,-500.0,0.00010958,2]
[350608209,1737993032836,-500.0,0.00010958,2]
[350608211,1737993032846,-500.0,0.00010958,2]
[350608213,1737993032855,-500.0,0.00010958,2]
[350608214,1737993032865,-500.0,0.00010958,2]
[350608215,1737993032875,-500.0,0.00010958,2]
[350608216,1737993032884,-500.0,0.00010958,2]
[350608217,1737993032893,-260.00194223,0.00010958,2]
[350608218,1737993032903,-309.39,0.00010958,2]
[350608219,1737993032912,-500.0,0.00010958,2]
[350608220,1737993032922,-506.2,0.00010958,2]
[350608221,1737993032931,-193.09562324,0.00010958,2]
[350608222,1737993032940,-500.0,0.00010958,2]
[350608223,1737993032950,-500.0,0.00010958,2]
[350608224,1737993032959,-500.0,0.00010958,2]
[350608225,1737993032970,-500.0,0.00010958,2]
[350608226,1737993032979,-500.0,0.00010958,2]
[350608228,1737993032989,-500.0,0.00010958,2]
[350608230,1737993032999,-46573.01127466,0.00010958,2]
[350608232,1737993033008,-184.49534543,0.00011107,2]
[350608234,1737993033018,-500.0,0.0001126,2]
[350608236,1737993033028,-184.49534543,0.00011314,2]
[350608238,1737993033038,-420.0,0.00011346,2]
[350608240,1737993033048,-252.0,0.00011371,2]
[350608242,1737993033058,-409.6,0.00011378,2]
[350608244,1737993033068,-298.24,0.00011378,2]
[350608246,1737993033079,-189.01,0.00011378,2]
[350608248,1737993033089,-184.49534543,0.00011521,2]
[350608250,1737993033099,-1325.314,0.00011678,2]
[350608252,1737993033109,-300.0,0.00011699,2]
[350608254,1737993033119,-1000.0,0.000117,2]
[350608256,1737993033129,-184.49534543,0.00011728,2]
[350608258,1737993033139,-430.93306688,0.00011765,2]
[350608260,1737993033149,-3132.0,0.00011778,2]
[350608262,1737993033160,-2500.0,0.00011779,2]
[350608264,1737993033171,-8505.18578387,0.00011779,2]
[350608265,1737993033182,-8505.18578379,0.00011792,2]
[350608267,1737993033191,-223.63,0.00011798,2]
[350608269,1737993033201,-863.6291,0.00011798,2]
[350608271,1737993033212,-5000.0,0.00011798,2]
[350608273,1737993033224,-1000.0,0.000118,2]
[350608275,1737993033234,-3481.12360652,0.000118,2]
[350608572,1737993036273,-43293.8368093,0.000118,2]
[350608574,1737993036284,-7082.59999996,0.000118,2]
[350608577,1737993036295,-10155.43958422,0.000118,2]
[350608578,1737993036306,-8505.18578379,0.00011806,2]
[350608581,1737993036315,-8505.18578379,0.00011819,2]
[350608583,1737993036324,-8505.18578379,0.00011832,2]
[350608584,1737993036333,-8505.18578379,0.00011846,2]
[350608586,1737993036343,-681.566,0.00011859,2]
[350608588,1737993036352,-8505.18578379,0.00011859,2]
[350608590,1737993036361,-690.95,0.00011865,2]
[350608592,1737993036371,-8505.18578379,0.00011872,2]
[350608594,1737993036380,-207.9243414,0.00011876,2]
[350608596,1737993036389,-582.26896516,0.00011876,2]
[350608599,1737993036399,-4280.82340134,0.00011876,2]
[350608600,1737993036408,-500.0,0.00011878,2]
[350608602,1737993036418,-500.0,0.00011878,2]
[350608604,1737993036427,-500.0,0.00011878,2]
[350608606,1737993036436,-500.0,0.00011878,2]
[350608608,1737993036446,-500.0,0.00011878,2]
[350608611,1737993036455,-500.0,0.00011878,2]
[350608613,1737993036465,-500.0,0.00011878,2]
[350608614,1737993036476,-500.0,0.00011878,2]
[350608617,1737993036486,-500.0,0.00011878,2]
[350608618,1737993036495,-500.0,0.00011878,2]
[350608620,1737993036505,-500.0,0.00011878,2]
[350608623,1737993036515,-500.0,0.00011878,2]
[350608624,1737993036525,-500.0,0.00011878,2]
[350608627,1737993036535,-500.0,0.00011878,2]
[350608628,1737993036544,-500.0,0.00011878,2]
[350608630,1737993036553,-500.0,0.00011878,2]
[350608632,1737993036563,-500.0,0.00011878,2]
[350608634,1737993036572,-500.0,0.00011878,2]
[350608636,1737993036582,-500.0,0.00011878,2]
[350608638,1737993036591,-500.0,0.00011878,2]
[350608640,1737993036605,-500.0,0.00011878,2]
[350608642,1737993036614,-500.0,0.00011878,2]
[350608644,1737993036624,-500.0,0.00011878,2]
[350608646,1737993036633,-500.0,0.00011878,2]
[350608648,1737993036643,-500.0,0.00011878,2]
[350608650,1737993036653,-500.0,0.00011878,2]
[350608652,1737993036662,-500.0,0.00011878,2]
[350608654,1737993036671,-500.0,0.00011878,2]
[350608656,1737993036682,-500.0,0.00011878,2]
[350608658,1737993036691,-500.0,0.00011878,2]
[350608660,1737993036701,-500.0,0.00011878,2]
[350608662,1737993036711,-500.0,0.00011878,2]
[350608664,1737993036720,-500.0,0.00011878,2]
[350608666,1737993036731,-500.0,0.00011878,2]
[350608668,1737993036740,-500.0,0.00011878,2]
[350608670,1737993036750,-553.01,0.00011878,2]
[350608672,1737993036760,-500.0,0.00011878,2]
[350608674,1737993036770,-500.0,0.00011879,2]
[350608676,1737993036780,-500.0,0.00011879,2]
[350608678,1737993036789,-500.0,0.00011879,2]
[350608680,1737993036798,-500.0,0.00011879,2]
[350608682,1737993036808,-336.0,0.00011879,2]
[350608684,1737993036817,-500.0,0.00011879,2]
[350608686,1737993036826,-500.0,0.00011879,2]
[350608688,1737993036835,-500.0,0.00011879,2]
[350608690,1737993036846,-500.0,0.00011879,2]
[350608692,1737993036855,-500.0,0.00011879,2]
[350608694,1737993036865,-500.0,0.00011879,2]
[350608696,1737993036874,-500.0,0.00011879,2]
[350608698,1737993036883,-500.0,0.00011879,2]
[350608700,1737993036893,-500.0,0.00011879,2]
[350608702,1737993036902,-500.0,0.00011879,2]
[350608704,1737993036911,-225.53753513,0.00011879,2]
[350608706,1737993036921,-500.0,0.00011879,2]
[350608708,1737993036931,-500.0,0.00011879,2]
[350608710,1737993036940,-500.0,0.00011879,2]
[350608712,1737993036950,-500.0,0.00011879,2]
[350608714,1737993036960,-189.71694787,0.00011879,2]
[350608716,1737993036969,-500.0,0.00011879,2]
[350608718,1737993036979,-500.0,0.00011879,2]
[350608720,1737993036988,-500.0,0.00011879,2]
[350608721,1737993036998,-500.0,0.00011879,2]
[350608724,1737993037008,-500.0,0.00011879,2]
[350608726,1737993037017,-500.0,0.00011879,2]
[350608727,1737993037026,-500.0,0.00011879,2]
[350608729,1737993037035,-500.0,0.00011879,2]
[350608731,1737993037045,-500.0,0.00011879,2]
[350608733,1737993037054,-500.0,0.00011879,2]
[350608735,1737993037063,-500.0,0.00011879,2]
[350608737,1737993037073,-490.09,0.00011879,2]
[350608739,1737993037082,-500.0,0.00011879,2]
[350608741,1737993037091,-500.0,0.00011879,2]
[350608743,1737993037101,-420.94420485,0.00011879,2]
[350608745,1737993037110,-334.95015294,0.00011879,2]
[350608747,1737993037119,-500.0,0.00011879,2]
[350608749,1737993037128,-506.2,0.00011879,2]
[350608751,1737993037137,-500.0,0.00011883,2]
[350608753,1737993037147,-500.0,0.00011883,7]
[350608755,1737993037156,-500.0,0.00011883,2]
[350608757,1737993037166,-252.0,0.00011883,2]
[350608759,1737993037175,-8505.18578379,0.00011886,2]
[350608761,1737993037184,-8658.4714415,0.00011887,2]
[350608763,1737993037194,-1688.3398862,0.00011887,2]
[350608765,1737993037203,-794.5691414,0.00011887,2]
[350608767,1737993037212,-239.7598786,0.00011887,2]
[350608769,1737993037221,-621.7271661,0.00011887,2]
[350608771,1737993037231,-500.0,0.00011895,2]
[350608773,1737993037241,-500.0,0.00011895,2]
[350608775,1737993037250,-500.0,0.00011895,2]
[350608777,1737993037259,-500.0,0.00011895,2]
[350608779,1737993037268,-500.0,0.00011895,2]
[350608781,1737993037278,-500.55822954,0.00011895,2]
[350608783,1737993037287,-500.0,0.00011895,2]
[350608785,1737993037296,-628.80243118,0.00011895,2]
[350608787,1737993037305,-500.0,0.00011895,2]
[350608788,1737993037314,-500.0,0.00011895,2]
[350608791,1737993037324,-500.0,0.00011895,2]
[350608793,1737993037334,-500.0,0.00011895,2]
[350608794,1737993037343,-191.12063825,0.00011895,2]
[350608796,1737993037352,-500.0,0.00011895,2]
[350608798,1737993037361,-500.0,0.00011895,2]
[350608800,1737993037369,-500.0,0.00011895,2]
[350608802,1737993037378,-500.0,0.00011895,2]
[350608804,1737993037388,-500.0,0.00011895,2]
[350608806,1737993037397,-500.0,0.00011895,2]
[350608808,1737993037407,-500.0,0.00011895,2]
[350608810,1737993037417,-500.0,0.00011895,2]
[350608812,1737993037426,-362.397862,0.00011895,2]
[350608814,1737993037436,-500.0,0.00011895,2]
[350608816,1737993037445,-500.0,0.00011895,2]
[350608818,1737993037455,-500.0,0.00011895,2]
[350608820,1737993037465,-500.0,0.00011895,2]
[350608822,1737993037474,-500.0,0.00011895,2]
[350608824,1737993037486,-500.0,0.00011895,2]
[350608826,1737993037496,-500.0,0.00011895,2]
[350608828,1737993037505,-500.0,0.00011895,2]
[350608830,1737993037515,-500.0,0.00011895,2]
[350608832,1737993037524,-343.12784,0.00011895,2]
[350608834,1737993037534,-706.43,0.00011895,2]
[350608836,1737993037543,-500.0,0.00011895,2]
[350608838,1737993037552,-933.65,0.00011895,2]
[350608840,1737993037561,-500.0,0.00011895,2]
[350608842,1737993037570,-500.0,0.00011895,2]
[350608844,1737993037580,-500.0,0.00011895,2]
[350608846,1737993037589,-500.0,0.00011895,2]
[350608848,1737993037598,-795.17,0.00011895,2]
[350608850,1737993037612,-500.0,0.00011895,2]
[350608852,1737993037621,-500.0,0.00011895,2]
[350608854,1737993037630,-500.0,0.00011895,2]
[350608856,1737993037639,-500.0,0.00011895,2]
[350608858,1737993037649,-945.53,0.00011895,2]
[350608860,1737993037658,-500.0,0.00011895,2]
[350608862,1737993037668,-500.0,0.00011895,2]
[350608864,1737993037677,-611.91,0.00011895,2]
[350608866,1737993037688,-500.0,0.00011895,2]
[350608868,1737993037698,-500.0,0.00011895,2]
[350608870,1737993037707,-500.0,0.00011895,2]
[350608872,1737993037716,-500.0,0.00011895,2]
[350608874,1737993037727,-500.0,0.00011895,2]
[350608876,1737993037737,-500.0,0.00011895,2]
[350608878,1737993037747,-500.0,0.00011895,2]
[350608880,1737993037756,-500.0,0.00011895,2]
[350608882,1737993037766,-504.85494766,0.00011895,2]
[350608884,1737993037776,-500.0,0.00011895,2]
[350608886,1737993037786,-500.0,0.00011895,2]
[350608888,1737993037795,-500.0,0.00011895,2]
[350608890,1737993037804,-500.0,0.00011895,2]
[350608892,1737993037814,-505.76293258,0.00011895,2]
[350608894,1737993037823,-500.0,0.00011895,2]
[350608896,1737993037832,-500.0,0.00011895,2]
[350608898,1737993037842,-500.0,0.00011895,2]
[350608900,1737993037851,-500.0,0.00011895,2]
[350608902,1737993037860,-500.0,0.00011895,2]
[350608904,1737993037869,-500.0,0.00011895,2]
[350608906,1737993037879,-500.0,0.00011895,2]
[350608907,1737993037888,-500.0,0.00011895,2]
[350608909,1737993037898,-500.0,0.00011895,2]
[350608911,1737993037909,-500.0,0.00011895,2]
[350608912,1737993037918,-500.0,0.00011895,2]
[350608914,1737993037928,-500.0,0.00011895,2]
[350608916,1737993037937,-500.0,0.00011895,2]
[350608918,1737993037947,-502.55602871,0.00011895,2]
[350608919,1737993037956,-500.0,0.00011895,2]
[350608920,1737993037966,-500.0,0.00011895,2]
[350608922,1737993037975,-500.0,0.00011895,2]
[350608924,1737993037986,-500.0,0.00011895,2]
[350608926,1737993037995,-783.62,0.00011895,2]
[350608928,1737993038005,-500.0,0.00011895,2]
[350608930,1737993038014,-500.0,0.00011895,2]
[350608932,1737993038024,-500.0,0.00011895,2]
[350608934,1737993038034,-500.0,0.00011895,2]
[350608936,1737993038043,-500.0,0.00011895,2]
[350608939,1737993038053,-166.92795688,0.00011895,2]
[350608941,1737993038062,-500.0,0.00011895,2]
[350608943,1737993038071,-500.0,0.00011895,2]
[350608945,1737993038081,-500.0,0.00011895,2]
[350608947,1737993038090,-500.0,0.00011895,2]
[350608950,1737993038100,-500.0,0.00011895,2]
[350608953,1737993038110,-500.0,0.00011895,2]
[350608956,1737993038120,-508.62378819,0.00011895,2]
[350608959,1737993038130,-762.05,0.00011895,2]
[350608962,1737993038139,-500.0,0.00011895,2]
[350608965,1737993038149,-500.0,0.00011895,2]
[350608967,1737993038158,-500.0,0.00011895,2]
[350608969,1737993038168,-547.35236717,0.00011895,2]
[350608971,1737993038177,-500.0,0.00011895,2]
[350608973,1737993038187,-644.36871816,0.00011895,2]
[350608975,1737993038196,-500.0,0.00011895,2]
[350608977,1737993038206,-500.0,0.00011895,2]
[350608979,1737993038217,-500.0,0.00011895,2]
[350608981,1737993038227,-493.0792018,0.00011895,2]
[350608983,1737993038237,-500.0,0.00011895,2]
[350608985,1737993038247,-506.34772077,0.00011895,2]
[350608987,1737993038257,-502.96541502,0.00011895,2]
[350608989,1737993038266,-500.0,0.00011895,2]
[350608991,1737993038275,-500.0,0.00011895,2]
[350608993,1737993038285,-500.0,0.00011895,2]
[350608995,1737993038295,-500.0,0.00011895,2]
[350608997,1737993038304,-508.29805593,0.00011895,2]
[350608999,1737993038313,-500.0,0.00011895,2]
[350609001,1737993038324,-500.0,0.00011895,2]
[350609003,1737993038333,-500.0,0.00011895,2]
[350609005,1737993038343,-500.0,0.00011895,2]
[350609007,1737993038352,-480.30963312,0.00011895,2]
[350609009,1737993038367,-19.69036688,0.00011895,2]
[350609011,1737993038376,-503.91940821,0.00011895,2]
[350609013,1737993038385,-500.0,0.00011895,2]
[350609015,1737993038395,-461.28599991,0.00011895,2]
[350609018,1737993038407,-42.70489416,0.00011895,2]
[350609020,1737993038417,-506.38165543,0.00011895,2]
[350609022,1737993038427,-296.90920668,0.00011895,2]
[350609024,1737993038436,-741.89,0.00011895,2]
[350609026,1737993038445,-84.11425273,0.00011895,2]
[350609028,1737993038458,-415.88574727,0.00011895,2]
[350609030,1737993038467,-506.17874685,0.00011895,2]
[350609032,1737993038477,-500.0,0.00011895,2]
[350609034,1737993038487,-500.0,0.00011895,2]
[350609036,1737993038497,-500.0,0.00011895,2]
[350609038,1737993038507,-500.0,0.00011895,2]
[350609040,1737993038516,-515.9068742,0.00011895,2]
[350609042,1737993038526,-500.0,0.00011895,2]
[350609044,1737993038535,-368.4210704,0.00011895,2]
[350609046,1737993038545,-500.0,0.00011895,2]
[350609048,1737993038555,-1804.47,0.00011895,2]
[350609050,1737993038565,-500.0,0.00011895,2]
[350609052,1737993038575,-500.0,0.00011895,2]
[350609054,1737993038584,-646.86,0.00011895,2]
[350609056,1737993038593,-500.0,0.00011895,2]
[350609058,1737993038605,-500.0,0.00011895,2]
[350609060,1737993038614,-500.0,0.00011895,2]
[350609062,1737993038623,-503.67998366,0.00011895,2]
[350609064,1737993038632,-500.0,0.00011896,2]
[350609066,1737993038642,-500.0,0.00011896,2]
[350609068,1737993038652,-648.38,0.00011896,2]
[350609071,1737993038661,-402.25311849,0.00011896,2]
[350609073,1737993038670,-500.0,0.00011896,2]
[350609075,1737993038679,-500.0,0.00011896,2]
[350609077,1737993038689,-500.0,0.00011896,2]
[350609079,1737993038699,-500.0,0.00011896,2]
[350609081,1737993038708,-500.0,0.00011896,2]
[350609083,1737993038718,-500.0,0.00011896,2]
[350609084,1737993038728,-162.84336777,0.00011896,2]
[350609086,1737993038737,-500.0,0.00011896,2]
[350609088,1737993038747,-482.36938674,0.00011896,2]
[350609090,1737993038757,-595.52906595,0.00011896,2]
[350609093,1737993038767,-500.0,0.00011896,2]
[350609094,1737993038777,-500.0,0.00011896,2]
[350609096,1737993038787,-500.0,0.00011896,2]
[350609098,1737993038797,-500.0,0.00011896,2]
[350609100,1737993038806,-500.0,0.00011896,2]
[350609102,1737993038816,-500.0,0.00011896,2]
[350609104,1737993038825,-500.0,0.00011896,2]
[350609106,1737993038835,-500.0,0.00011896,2]
[350609108,1737993038845,-500.0,0.00011896,2]
[350609110,1737993038854,-500.0,0.00011896,2]
[350609112,1737993038863,-500.0,0.00011896,2]
[350609114,1737993038873,-500.0,0.00011896,2]
[350609116,1737993038882,-500.0,0.00011896,2]
[350609118,1737993038892,-500.0,0.00011896,2]
[350609120,1737993038901,-500.0,0.00011896,2]
[350609122,1737993038911,-500.0,0.00011896,2]
[350609124,1737993038920,-500.0,0.00011896,2]
[350609126,1737993038930,-500.0,0.00011896,2]
[350609128,1737993038940,-500.0,0.00011896,2]
[350609130,1737993038950,-500.0,0.00011896,2]
[350609132,1737993038960,-500.0,0.00011896,2]
[350609134,1737993038969,-500.0,0.00011896,2]
[350609136,1737993038979,-501.73498177,0.00011896,2]
[350609138,1737993038988,-500.0,0.00011896,2]
[350609140,1737993038998,-500.0,0.00011896,2]
[350609142,1737993039008,-500.0,0.00011896,2]
[350609144,1737993039018,-293.24562189,0.00011896,2]
[350609146,1737993039027,-509.52970239,0.00011896,2]
[350609148,1737993039037,-500.0,0.00011896,2]
[350609150,1737993039046,-500.0,0.00011896,2]
[350609152,1737993039055,-618.87111228,0.00011896,2]
[350609154,1737993039065,-500.0,0.00011896,2]
[350609156,1737993039075,-500.0,0.00011896,2]
[350609157,1737993039084,-500.0,0.00011896,2]
[350609160,1737993039098,-500.0,0.00011896,2]